[Event "Early-Titled-Tuesday-Blitz-January-23-2024"]
[Site "Chess.com"]
[Date "2024.01.23"]
[Round "6"]
[White "Me_ch_an"]
[Black "Kotlyar_K"]
[Result "1-0"]
[WhiteElo "2316"]
[BlackElo "2493"]
[TimeControl "180+1"]
[EndTime "9:06:56 PST"]
[Termination "Me_ch_an won by resignation"]

1. e4 {[%clk 0:03:00.9]} 1... e5 {[%clk 0:02:59.6]} 2. Nf3 {[%clk 0:03:00.6]}
2... Nc6 {[%clk 0:03:00.3]} 3. Bb5 {[%clk 0:03:00.8]} 3... a6 {[%clk 0:03:00.7]}
4. Ba4 {[%clk 0:03:00.6]} 4... Nf6 {[%clk 0:03:01]} 5. Qe2 {[%clk 0:03:00.9]}
5... b5 {[%clk 0:02:55.5]} 6. Bb3 {[%clk 0:03:00.8]} 6... Be7 {[%clk 0:02:55.3]}
7. c3 {[%clk 0:03:00.9]} 7... O-O {[%clk 0:02:50]} 8. O-O {[%clk 0:03:01.1]}
8... d6 {[%clk 0:02:46.7]} 9. Rd1 {[%clk 0:02:59.2]} 9... Na5 {[%clk 0:02:45.2]}
10. Bc2 {[%clk 0:02:59]} 10... Nd7 {[%clk 0:02:06.9]} 11. d4 {[%clk 0:02:56.9]}
11... f6 {[%clk 0:02:06.8]} 12. Nh4 {[%clk 0:02:51.2]} 12... Nb6 {[%clk
0:02:02.8]} 13. a4 {[%clk 0:02:37.9]} 13... Be6 {[%clk 0:01:56.1]} 14. d5 {[%clk
0:02:32.1]} 14... Bd7 {[%clk 0:01:54.8]} 15. b3 {[%clk 0:02:27.6]} 15... Nb7
{[%clk 0:01:47.8]} 16. a5 {[%clk 0:02:25.8]} 16... Nc8 {[%clk 0:01:45.8]} 17. b4
{[%clk 0:02:25.3]} 17... g6 {[%clk 0:01:41]} 18. Nd2 {[%clk 0:02:16.3]} 18... f5
{[%clk 0:01:38.8]} 19. Nhf3 {[%clk 0:02:12.7]} 19... f4 {[%clk 0:01:39.1]} 20.
Bd3 {[%clk 0:02:07.1]} 20... g5 {[%clk 0:01:29.7]} 21. h3 {[%clk 0:02:02.8]}
21... Qe8 {[%clk 0:01:28.8]} 22. c4 {[%clk 0:02:03.1]} 22... Nd8 {[%clk
0:01:28.3]} 23. Nb3 {[%clk 0:02:01.4]} 23... Nf7 {[%clk 0:01:26]} 24. c5 {[%clk
0:02:01.7]} 24... c6 {[%clk 0:01:16.5]} 25. Bb2 {[%clk 0:01:54.2]} 25... dxc5
{[%clk 0:01:09.1]} 26. bxc5 {[%clk 0:01:51.2]} 26... Bf6 {[%clk 0:01:06.9]} 27.
Nh2 {[%clk 0:01:39.6]} 27... Ne7 {[%clk 0:01:05.8]} 28. f3 {[%clk 0:01:15.3]}
28... Ng6 {[%clk 0:01:02]} 29. Ng4 {[%clk 0:01:12.5]} 29... Bg7 {[%clk
0:01:01.6]} 30. dxc6 {[%clk 0:01:03]} 30... Bxc6 {[%clk 0:01:01.1]} 31. Bc2
{[%clk 0:01:02.8]} 31... h5 {[%clk 0:01:00.3]} 32. Nf2 {[%clk 0:01:02]} 32...
Nh6 {[%clk 0:00:59.4]} 33. Rd6 {[%clk 0:01:00.8]} 33... Rf6 {[%clk 0:00:57.1]}
34. Rad1 {[%clk 0:01:00.5]} 34... Nf7 {[%clk 0:00:48.4]} 35. Rxf6 {[%clk
0:00:57.4]} 35... Bxf6 {[%clk 0:00:49.3]} 36. Nc1 {[%clk 0:00:56.5]} 36... Rd8
{[%clk 0:00:48.6]} 37. Bb3 {[%clk 0:00:56.4]} 37... Kg7 {[%clk 0:00:47.7]} 38.
Bd5 {[%clk 0:00:56.4]} 38... Ne7 {[%clk 0:00:36]} 39. Bxf7 {[%clk 0:00:40.9]}
39... Kxf7 {[%clk 0:00:34.9]} 40. Rd6 {[%clk 0:00:39.4]} 40... Nc8 {[%clk
0:00:34.2]} 41. Rxd8 {[%clk 0:00:29.5]} 41... Qxd8 {[%clk 0:00:35.1]} 42. Ncd3
{[%clk 0:00:29.4]} 42... Qc7 {[%clk 0:00:25.8]} 43. Nb4 {[%clk 0:00:28.5]} 43...
Bb7 {[%clk 0:00:23.5]} 44. Qc2 {[%clk 0:00:26.8]} 44... Ne7 {[%clk 0:00:21.2]}
45. Nfd3 {[%clk 0:00:24.8]} 45... Nc6 {[%clk 0:00:19.9]} 46. Nxc6 {[%clk
0:00:18.5]} 46... Bxc6 {[%clk 0:00:20.8]} 47. Qb3+ {[%clk 0:00:18.9]} 47... Kg6
{[%clk 0:00:20.7]} 48. Qg8+ {[%clk 0:00:17.6]} 48... Kh6 {[%clk 0:00:17]} 49.
Qe6 {[%clk 0:00:17.5]} 49... Kg7 {[%clk 0:00:13.8]} 50. Bxe5 {[%clk 0:00:17.3]}
50... Bxe5 {[%clk 0:00:10.6]} 51. Nxe5 {[%clk 0:00:17.7]} 51... Qxe5 {[%clk
0:00:11.2]} 52. Qxe5+ {[%clk 0:00:17.6]} 1-0

[Event "Early-Titled-Tuesday-Blitz-January-23-2024"]
[Site "Chess.com"]
[Date "2024.01.23"]
[Round "6"]
[White "Vazabanga"]
[Black "rhungaski"]
[Result "1-0"]
[WhiteElo "2678"]
[BlackElo "2510"]
[TimeControl "180+1"]
[EndTime "9:06:57 PST"]
[Termination "Vazabanga won on time"]

1. d4 {[%clk 0:03:00.9]} 1... g6 {[%clk 0:02:59.4]} 2. c4 {[%clk 0:03:01.4]}
2... Bg7 {[%clk 0:02:59.3]} 3. Nf3 {[%clk 0:03:02.1]} 3... d6 {[%clk 0:02:59.1]}
4. g3 {[%clk 0:03:02.7]} 4... Nf6 {[%clk 0:02:59.4]} 5. Bg2 {[%clk 0:03:03.3]}
5... O-O {[%clk 0:03:00]} 6. O-O {[%clk 0:03:03.8]} 6... Nc6 {[%clk 0:03:00.5]}
7. Nc3 {[%clk 0:03:04.5]} 7... e5 {[%clk 0:03:00.6]} 8. d5 {[%clk 0:03:02.7]}
8... Ne7 {[%clk 0:03:00.4]} 9. e4 {[%clk 0:03:03.3]} 9... Nd7 {[%clk 0:02:56.5]}
10. Ne1 {[%clk 0:03:03.9]} 10... a5 {[%clk 0:02:54.3]} 11. Nd3 {[%clk
0:03:04.3]} 11... b6 {[%clk 0:02:53.2]} 12. Be3 {[%clk 0:03:02.6]} 12... f5
{[%clk 0:02:51.6]} 13. Qd2 {[%clk 0:03:02]} 13... Nf6 {[%clk 0:02:37.4]} 14. f4
{[%clk 0:02:48.7]} 14... Ng4 {[%clk 0:02:30.6]} 15. fxe5 {[%clk 0:02:41.8]}
15... Nxe3 {[%clk 0:02:27.8]} 16. Qxe3 {[%clk 0:02:42.7]} 16... dxe5 {[%clk
0:02:24.8]} 17. Kh1 {[%clk 0:02:39.6]} 17... Ba6 {[%clk 0:01:54.5]} 18. b3
{[%clk 0:02:35]} 18... Qd6 {[%clk 0:01:54.9]} 19. Rae1 {[%clk 0:02:28.9]} 19...
Rae8 {[%clk 0:01:46]} 20. Qd2 {[%clk 0:02:10.4]} 20... c5 {[%clk 0:01:33.1]} 21.
Rf2 {[%clk 0:02:03.7]} 21... Nc8 {[%clk 0:01:14.6]} 22. Rfe2 {[%clk 0:02:02.8]}
22... Re7 {[%clk 0:00:55.8]} 23. Bh3 {[%clk 0:01:49.6]} 23... Qf6 {[%clk
0:00:45.9]} 24. Rf2 {[%clk 0:01:19.8]} 24... Nd6 {[%clk 0:00:43.4]} 25. Ref1
{[%clk 0:01:19.8]} 25... Bc8 {[%clk 0:00:37.7]} 26. Bg2 {[%clk 0:01:13.3]} 26...
Bd7 {[%clk 0:00:33.7]} 27. a4 {[%clk 0:01:03.5]} 27... Ree8 {[%clk 0:00:32.8]}
28. Qe2 {[%clk 0:00:57.8]} 28... Qg5 {[%clk 0:00:25.8]} 29. Qc2 {[%clk
0:00:33.7]} 29... h5 {[%clk 0:00:22.7]} 30. exf5 {[%clk 0:00:28.6]} 30... gxf5
{[%clk 0:00:22.1]} 31. Ne2 {[%clk 0:00:28.9]} 31... h4 {[%clk 0:00:17.7]} 32.
Ne1 {[%clk 0:00:27.6]} 32... hxg3 {[%clk 0:00:16.8]} 33. Nxg3 {[%clk 0:00:28.5]}
33... e4 {[%clk 0:00:16]} 34. Ne2 {[%clk 0:00:25.5]} 34... Rf6 {[%clk
0:00:14.4]} 35. Nf4 {[%clk 0:00:22.3]} 35... Rh6 {[%clk 0:00:14.8]} 36. Bh3
{[%clk 0:00:15.8]} 36... Kh8 {[%clk 0:00:13]} 37. Rg2 {[%clk 0:00:15.7]} 37...
Qh4 {[%clk 0:00:11.1]} 38. Qe2 {[%clk 0:00:14.7]} 38... Be5 {[%clk 0:00:10.4]}
39. Ng6+ {[%clk 0:00:08.2]} 39... Rxg6 {[%clk 0:00:10.1]} 40. Rxg6 {[%clk
0:00:09.1]} 40... Qxh3 {[%clk 0:00:10.3]} 41. Rg5 {[%clk 0:00:09.3]} 41... Qxh2+
{[%clk 0:00:05.4]} 42. Qxh2+ {[%clk 0:00:09.1]} 42... Bxh2 {[%clk 0:00:06.3]}
43. Kxh2 {[%clk 0:00:09.1]} 43... Nf7 {[%clk 0:00:06.3]} 44. Rg2 {[%clk
0:00:07.6]} 44... Ne5 {[%clk 0:00:06]} 45. Kg1 {[%clk 0:00:06.9]} 45... Ng4
{[%clk 0:00:05]} 46. Rf4 {[%clk 0:00:06.7]} 46... Kg7 {[%clk 0:00:03.8]} 47. Rg3
{[%clk 0:00:05.9]} 47... Kf6 {[%clk 0:00:03.7]} 48. Ng2 {[%clk 0:00:06.4]} 48...
Ke5 {[%clk 0:00:03.7]} 49. Rf1 {[%clk 0:00:06.7]} 49... Rg8 {[%clk 0:00:01.5]}
50. Nf4 {[%clk 0:00:07.1]} 1-0

[Event "Early-Titled-Tuesday-Blitz-January-23-2024"]
[Site "Chess.com"]
[Date "2024.01.23"]
[Round "6"]
[White "FGHSMN"]
[Black "scarabee43"]
[Result "1-0"]
[WhiteElo "2997"]
[BlackElo "2812"]
[TimeControl "180+1"]
[EndTime "9:06:58 PST"]
[Termination "FGHSMN won by resignation"]

1. e4 {[%clk 0:03:00.9]} 1... c5 {[%clk 0:02:59.9]} 2. Nf3 {[%clk 0:03:01.4]}
2... e6 {[%clk 0:03:00.3]} 3. Nc3 {[%clk 0:03:00.8]} 3... Nc6 {[%clk 0:02:59.7]}
4. Bb5 {[%clk 0:03:00.3]} 4... Nd4 {[%clk 0:02:59.1]} 5. O-O {[%clk 0:02:59.7]}
5... a6 {[%clk 0:02:53.9]} 6. Bd3 {[%clk 0:02:59.8]} 6... Nc6 {[%clk 0:02:53.7]}
7. Re1 {[%clk 0:02:58.8]} 7... d6 {[%clk 0:02:48.3]} 8. Bf1 {[%clk 0:02:58.3]}
8... Be7 {[%clk 0:02:47.8]} 9. d4 {[%clk 0:02:55.3]} 9... cxd4 {[%clk
0:02:47.5]} 10. Nxd4 {[%clk 0:02:56.2]} 10... Nxd4 {[%clk 0:02:42.9]} 11. Qxd4
{[%clk 0:02:55.7]} 11... Nf6 {[%clk 0:02:41.1]} 12. a4 {[%clk 0:02:55.7]} 12...
O-O {[%clk 0:02:41.3]} 13. h3 {[%clk 0:02:48.4]} 13... h6 {[%clk 0:02:38.1]} 14.
Be3 {[%clk 0:02:48.6]} 14... e5 {[%clk 0:02:37.4]} 15. Qd2 {[%clk 0:02:46.2]}
15... Be6 {[%clk 0:02:37.2]} 16. Red1 {[%clk 0:02:45.8]} 16... Rc8 {[%clk
0:02:35.5]} 17. a5 {[%clk 0:02:45.8]} 17... Qd7 {[%clk 0:02:30.7]} 18. Bb6
{[%clk 0:02:26.8]} 18... Qc6 {[%clk 0:02:21.4]} 19. Ra4 {[%clk 0:02:21.4]} 19...
Nd7 {[%clk 0:02:15.6]} 20. Be3 {[%clk 0:02:21.6]} 20... Nc5 {[%clk 0:02:05.8]}
21. Rb4 {[%clk 0:02:20]} 21... Bd8 {[%clk 0:01:48.6]} 22. Nd5 {[%clk 0:01:59.7]}
22... Bxd5 {[%clk 0:01:40]} 23. exd5 {[%clk 0:02:00.6]} 23... Qd7 {[%clk
0:01:29.3]} 24. Rc4 {[%clk 0:01:58.9]} 24... b5 {[%clk 0:01:23]} 25. axb6 {[%clk
0:01:58]} 25... Bxb6 {[%clk 0:01:23.5]} 26. Ra1 {[%clk 0:01:48.5]} 26... a5
{[%clk 0:01:21.8]} 27. Bxc5 {[%clk 0:01:39.7]} 27... Rxc5 {[%clk 0:01:01.7]} 28.
Rxc5 {[%clk 0:01:39.3]} 28... Bxc5 {[%clk 0:01:02.4]} 29. Rxa5 {[%clk
0:01:33.7]} 29... Rb8 {[%clk 0:00:54.6]} 30. c3 {[%clk 0:01:33.8]} 30... Qc7
{[%clk 0:00:49.6]} 31. b4 {[%clk 0:01:32.8]} 31... Bb6 {[%clk 0:00:49.3]} 32.
Ra6 {[%clk 0:01:33.1]} 32... e4 {[%clk 0:00:40.9]} 33. c4 {[%clk 0:01:28.6]}
33... Qe7 {[%clk 0:00:38.4]} 34. c5 {[%clk 0:00:55.4]} 34... dxc5 {[%clk
0:00:38.2]} 35. d6 {[%clk 0:00:56]} 35... Qe8 {[%clk 0:00:21.8]} 36. d7 {[%clk
0:00:37.9]} 36... Qd8 {[%clk 0:00:19.2]} 37. bxc5 {[%clk 0:00:29.6]} 37... Bxc5
{[%clk 0:00:19.3]} 38. Rc6 {[%clk 0:00:30.5]} 38... e3 {[%clk 0:00:14.3]} 39.
fxe3 {[%clk 0:00:29.4]} 39... Bf8 {[%clk 0:00:12.4]} 40. Ba6 {[%clk 0:00:25.4]}
40... Rb1+ {[%clk 0:00:11.5]} 41. Kf2 {[%clk 0:00:25.3]} 41... Qh4+ {[%clk
0:00:10.1]} 42. g3 {[%clk 0:00:20.6]} 42... Qd8 {[%clk 0:00:07.6]} 43. Bd3
{[%clk 0:00:16.1]} 43... Rb8 {[%clk 0:00:06.5]} 44. Bf5 {[%clk 0:00:15.7]} 44...
g6 {[%clk 0:00:06.3]} 45. Rc8 {[%clk 0:00:15]} 45... Qf6 {[%clk 0:00:04.2]} 46.
Rxb8 {[%clk 0:00:12.7]} 46... Qxf5+ {[%clk 0:00:04.3]} 47. Ke1 {[%clk
0:00:13.4]} 47... Qxh3 {[%clk 0:00:02.6]} 48. Rxf8+ {[%clk 0:00:13.5]} 48...
Kxf8 {[%clk 0:00:02.4]} 49. d8=Q+ {[%clk 0:00:13.8]} 1-0

[Event "Early-Titled-Tuesday-Blitz-January-23-2024"]
[Site "Chess.com"]
[Date "2024.01.23"]
[Round "6"]
[White "Makswolf200817"]
[Black "BasilSmash"]
[Result "1/2-1/2"]
[WhiteElo "2733"]
[BlackElo "2552"]
[TimeControl "180+1"]
[EndTime "9:06:59 PST"]
[Termination "Game drawn by repetition"]

1. e4 {[%clk 0:03:00.9]} 1... c5 {[%clk 0:02:57.9]} 2. Nf3 {[%clk 0:03:00.7]}
2... d6 {[%clk 0:02:57.9]} 3. d4 {[%clk 0:03:01.4]} 3... cxd4 {[%clk 0:02:58.6]}
4. Nxd4 {[%clk 0:03:02.1]} 4... Nf6 {[%clk 0:02:59.1]} 5. Nc3 {[%clk 0:03:02.8]}
5... a6 {[%clk 0:02:58.2]} 6. Be3 {[%clk 0:03:03.4]} 6... e5 {[%clk 0:02:58.1]}
7. Nb3 {[%clk 0:03:02.5]} 7... Be6 {[%clk 0:02:58.2]} 8. Qd2 {[%clk 0:03:01.3]}
8... Nbd7 {[%clk 0:02:58.5]} 9. f3 {[%clk 0:03:00.7]} 9... b5 {[%clk 0:02:55.1]}
10. g4 {[%clk 0:02:52.2]} 10... Be7 {[%clk 0:02:55]} 11. h4 {[%clk 0:02:49.4]}
11... O-O {[%clk 0:02:53.5]} 12. O-O-O {[%clk 0:02:49.1]} 12... Rc8 {[%clk
0:02:52.6]} 13. Kb1 {[%clk 0:02:43.8]} 13... Nb6 {[%clk 0:02:46.1]} 14. g5
{[%clk 0:02:41.7]} 14... Nh5 {[%clk 0:02:44]} 15. Nd5 {[%clk 0:02:41.3]} 15...
Bxd5 {[%clk 0:02:31.8]} 16. exd5 {[%clk 0:02:41.2]} 16... Nc4 {[%clk 0:02:32.5]}
17. Qe1 {[%clk 0:02:24.2]} 17... Nxe3 {[%clk 0:02:30.7]} 18. Qxe3 {[%clk
0:02:25.1]} 18... Qc7 {[%clk 0:02:29.2]} 19. Bd3 {[%clk 0:02:22.8]} 19... g6
{[%clk 0:02:27.7]} 20. Nd2 {[%clk 0:02:18.1]} 20... Qc5 {[%clk 0:02:24.5]} 21.
Qxc5 {[%clk 0:02:13.5]} 21... Rxc5 {[%clk 0:02:25.4]} 22. Be4 {[%clk 0:02:04.8]}
22... f5 {[%clk 0:02:21.7]} 23. gxf6 {[%clk 0:02:04.5]} 23... Bxf6 {[%clk
0:02:17.2]} 24. Nb3 {[%clk 0:02:04.5]} 24... Rcc8 {[%clk 0:02:10.3]} 25. Na5
{[%clk 0:02:02.9]} 25... Kg7 {[%clk 0:02:08.1]} 26. Nc6 {[%clk 0:02:02.3]} 26...
Bd8 {[%clk 0:01:57.1]} 27. a4 {[%clk 0:01:32.5]} 27... bxa4 {[%clk 0:01:47.4]}
28. Bd3 {[%clk 0:01:26]} 28... Ra8 {[%clk 0:01:37.8]} 29. Rdg1 {[%clk 0:01:11]}
29... Rf4 {[%clk 0:01:35.4]} 30. Rg4 {[%clk 0:01:08.5]} 30... Bb6 {[%clk
0:01:12.6]} 31. Ka2 {[%clk 0:01:03.5]} 31... Bc5 {[%clk 0:01:09.5]} 32. Rf1
{[%clk 0:00:53.3]} 32... a3 {[%clk 0:01:08.7]} 33. bxa3 {[%clk 0:00:50.3]} 33...
Raf8 {[%clk 0:01:00.5]} 34. Kb2 {[%clk 0:00:28.9]} 34... Kh6 {[%clk 0:00:26.3]}
35. Bxa6 {[%clk 0:00:23.9]} 35... Ra8 {[%clk 0:00:25.1]} 36. Be2 {[%clk
0:00:13.9]} 36... Bxa3+ {[%clk 0:00:23]} 37. Kb3 {[%clk 0:00:14.5]} 37... Bc5
{[%clk 0:00:20.5]} 38. Rb1 {[%clk 0:00:13.1]} 38... Ra3+ {[%clk 0:00:19.6]} 39.
Kb2 {[%clk 0:00:13.7]} 39... Re3 {[%clk 0:00:19.2]} 40. Bd1 {[%clk 0:00:11.3]}
40... Ba3+ {[%clk 0:00:16.9]} 41. Ka2 {[%clk 0:00:10.9]} 41... Bc5 {[%clk
0:00:16]} 42. Nd8 {[%clk 0:00:11.5]} 42... Rxg4 {[%clk 0:00:11.5]} 43. fxg4
{[%clk 0:00:11.5]} 43... Nf4 {[%clk 0:00:11.8]} 44. c4 {[%clk 0:00:06.8]} 44...
Kg7 {[%clk 0:00:10]} 45. Rb7+ {[%clk 0:00:05.9]} 45... Kg8 {[%clk 0:00:09.9]}
46. Nc6 {[%clk 0:00:05.7]} 46... Ra3+ {[%clk 0:00:08.7]} 47. Kb2 {[%clk
0:00:06]} 47... Nd3+ {[%clk 0:00:06.9]} 48. Kc2 {[%clk 0:00:06.6]} 48... e4
{[%clk 0:00:06.9]} 49. Re7 {[%clk 0:00:05.5]} 49... Ra2+ {[%clk 0:00:06.6]} 50.
Kc3 {[%clk 0:00:03.7]} 50... Ra3+ {[%clk 0:00:05.7]} 51. Kc2 {[%clk 0:00:04.2]}
51... Ra2+ {[%clk 0:00:04.6]} 52. Kb3 {[%clk 0:00:02.2]} 52... Ra3+ {[%clk
0:00:04.8]} 53. Kc2 {[%clk 0:00:02.8]} 1/2-1/2

[Event "Early-Titled-Tuesday-Blitz-January-23-2024"]
[Site "Chess.com"]
[Date "2024.01.23"]
[Round "6"]
[White "R2D2PTY"]
[Black "falzehope0"]
[Result "1-0"]
[WhiteElo "2261"]
[BlackElo "2396"]
[TimeControl "180+1"]
[EndTime "9:07:00 PST"]
[Termination "R2D2PTY won by resignation"]

1. e4 {[%clk 0:03:00.9]} 1... d5 {[%clk 0:02:59.5]} 2. exd5 {[%clk 0:03:00.8]}
2... Nf6 {[%clk 0:03:00]} 3. Nf3 {[%clk 0:02:57.8]} 3... Qxd5 {[%clk 0:02:59.6]}
4. c4 {[%clk 0:02:51.9]} 4... Qh5 {[%clk 0:02:56.9]} 5. Be2 {[%clk 0:02:48.9]}
5... Bg4 {[%clk 0:02:56.3]} 6. Qb3 {[%clk 0:02:41.2]} 6... b6 {[%clk 0:02:43.2]}
7. d4 {[%clk 0:02:40.4]} 7... Nc6 {[%clk 0:02:38.7]} 8. Be3 {[%clk 0:02:35.2]}
8... e6 {[%clk 0:02:31.8]} 9. Nc3 {[%clk 0:02:08.6]} 9... Nd7 {[%clk 0:02:16.5]}
10. O-O-O {[%clk 0:02:03.2]} 10... Be7 {[%clk 0:02:10.4]} 11. h3 {[%clk
0:01:54]} 11... Na5 {[%clk 0:02:02.4]} 12. Qa4 {[%clk 0:01:37.7]} 12... Bf5
{[%clk 0:01:30.2]} 13. g4 {[%clk 0:01:35.7]} 13... Bxg4 {[%clk 0:01:28.8]} 14.
hxg4 {[%clk 0:01:36.6]} 14... Qxg4 {[%clk 0:01:29]} 15. Qxd7+ {[%clk 0:01:02.4]}
15... Kxd7 {[%clk 0:01:26.6]} 16. Ne5+ {[%clk 0:01:02.9]} 16... Ke8 {[%clk
0:01:25.9]} 17. Bxg4 {[%clk 0:00:59.7]} 17... f6 {[%clk 0:01:22]} 18. Nd3 {[%clk
0:00:35.3]} 18... Kf7 {[%clk 0:01:18.5]} 19. d5 {[%clk 0:00:28.6]} 19... f5
{[%clk 0:01:07.6]} 20. Bf3 {[%clk 0:00:25.5]} 20... Rad8 {[%clk 0:00:51.7]} 21.
Ne5+ {[%clk 0:00:22.8]} 21... Kf6 {[%clk 0:00:47.8]} 22. Bd4 {[%clk 0:00:22.8]}
22... c5 {[%clk 0:00:44.1]} 23. dxc6 {[%clk 0:00:20.6]} 23... Rxd4 {[%clk
0:00:42.9]} 24. Rxd4 {[%clk 0:00:07]} 24... Kxe5 {[%clk 0:00:43]} 25. Rd7 {[%clk
0:00:07.9]} 25... Bf6 {[%clk 0:00:41.7]} 26. Rxa7 {[%clk 0:00:05.2]} 26... Rc8
{[%clk 0:00:38.7]} 27. c7 {[%clk 0:00:04.9]} 27... Kf4 {[%clk 0:00:37.5]} 28.
Bg2 {[%clk 0:00:03.9]} 28... Nxc4 {[%clk 0:00:37.7]} 29. Nb5 {[%clk 0:00:04.1]}
29... Be5 {[%clk 0:00:36.3]} 30. Bb7 {[%clk 0:00:03.5]} 30... Rxc7 {[%clk
0:00:29]} 31. Nxc7 {[%clk 0:00:03.9]} 31... Bxc7 {[%clk 0:00:29.8]} 32. Rh4+
{[%clk 0:00:04.1]} 32... Kg5 {[%clk 0:00:27.1]} 33. Rxc4 {[%clk 0:00:05]} 33...
Bf4+ {[%clk 0:00:27]} 34. Kd1 {[%clk 0:00:05.2]} 34... Be5 {[%clk 0:00:26.9]}
35. Rc2 {[%clk 0:00:05.6]} 35... g6 {[%clk 0:00:27.3]} 36. Bg2 {[%clk
0:00:06.1]} 36... h5 {[%clk 0:00:28.2]} 37. Rb7 {[%clk 0:00:06.5]} 37... h4
{[%clk 0:00:28.9]} 38. Rxb6 {[%clk 0:00:07]} 38... Bf4 {[%clk 0:00:28.8]} 39.
Rxe6 {[%clk 0:00:07.2]} 39... h3 {[%clk 0:00:28.9]} 40. Bxh3 {[%clk 0:00:07.5]}
40... Kh4 {[%clk 0:00:26.1]} 41. Bf1 {[%clk 0:00:08]} 41... g5 {[%clk
0:00:25.7]} 42. f3 {[%clk 0:00:07.9]} 42... Kg3 {[%clk 0:00:25.9]} 43. Bd3
{[%clk 0:00:06.3]} 43... Kxf3 {[%clk 0:00:26.2]} 44. Bxf5 {[%clk 0:00:06.3]}
44... Kg3 {[%clk 0:00:25]} 45. Rg6 {[%clk 0:00:06.2]} 45... Kf3 {[%clk
0:00:25.1]} 46. a4 {[%clk 0:00:05.9]} 46... Kg3 {[%clk 0:00:25.6]} 47. a5 {[%clk
0:00:06.5]} 47... Be3 {[%clk 0:00:25]} 48. a6 {[%clk 0:00:06.6]} 48... Kf4
{[%clk 0:00:25.6]} 49. b4 {[%clk 0:00:06.6]} 49... Kxf5 {[%clk 0:00:25.9]} 50.
Rgc6 {[%clk 0:00:06.8]} 50... Kg4 {[%clk 0:00:25.6]} 51. R6c4+ {[%clk
0:00:06.7]} 51... Kh5 {[%clk 0:00:25.3]} 52. R4c3 {[%clk 0:00:06.9]} 52... Bg1
{[%clk 0:00:25.1]} 53. b5 {[%clk 0:00:06.8]} 53... g4 {[%clk 0:00:24.3]} 54. Rc6
{[%clk 0:00:06.2]} 54... Kh4 {[%clk 0:00:24.4]} 55. b6 {[%clk 0:00:06.9]} 55...
g3 {[%clk 0:00:22.7]} 56. a7 {[%clk 0:00:07.2]} 56... Bxb6 {[%clk 0:00:22.4]}
57. Rxb6 {[%clk 0:00:06.9]} 57... g2 {[%clk 0:00:22.1]} 58. Rxg2 {[%clk
0:00:07.1]} 58... Kh3 {[%clk 0:00:22.4]} 59. Rc2 {[%clk 0:00:07.7]} 59... Kg3
{[%clk 0:00:21.4]} 60. Rb3+ {[%clk 0:00:08.2]} 60... Kg4 {[%clk 0:00:20.7]} 61.
Rc4+ {[%clk 0:00:08.8]} 61... Kf5 {[%clk 0:00:20.8]} 62. Rb5+ {[%clk 0:00:09.5]}
62... Ke6 {[%clk 0:00:21.3]} 63. Rc6+ {[%clk 0:00:09.5]} 63... Kd7 {[%clk
0:00:21.7]} 64. Rh6 {[%clk 0:00:10.1]} 64... Kc7 {[%clk 0:00:21.6]} 65. Rg5
{[%clk 0:00:10.5]} 65... Kb7 {[%clk 0:00:21.3]} 66. Rg7+ {[%clk 0:00:10.2]} 1-0

[Event "Early-Titled-Tuesday-Blitz-January-23-2024"]
[Site "Chess.com"]
[Date "2024.01.23"]
[Round "6"]
[White "apuwins"]
[Black "mary-sanna"]
[Result "1/2-1/2"]
[WhiteElo "2333"]
[BlackElo "2209"]
[TimeControl "180+1"]
[EndTime "9:07:02 PST"]
[Termination "Game drawn - insufficient material"]

1. e4 {[%clk 0:02:40.2]} 1... c5 {[%clk 0:03:00]} 2. Nc3 {[%clk 0:02:40.2]} 2...
Nc6 {[%clk 0:03:00.2]} 3. g3 {[%clk 0:02:40.9]} 3... g6 {[%clk 0:03:00.4]} 4.
Bg2 {[%clk 0:02:41.6]} 4... Bg7 {[%clk 0:03:00.7]} 5. d3 {[%clk 0:02:42.4]} 5...
e6 {[%clk 0:03:01.1]} 6. Be3 {[%clk 0:02:42.9]} 6... d6 {[%clk 0:02:54.4]} 7.
Qd2 {[%clk 0:02:43.5]} 7... Nd4 {[%clk 0:02:38.9]} 8. Nd1 {[%clk 0:02:43.4]}
8... Ne7 {[%clk 0:02:28.8]} 9. c3 {[%clk 0:02:40.3]} 9... Ndc6 {[%clk
0:02:28.2]} 10. Ne2 {[%clk 0:02:40.1]} 10... O-O {[%clk 0:02:25.6]} 11. O-O
{[%clk 0:02:40.7]} 11... f5 {[%clk 0:02:12.7]} 12. Bh6 {[%clk 0:02:39.5]} 12...
Bd7 {[%clk 0:02:07.3]} 13. Bxg7 {[%clk 0:02:39.4]} 13... Kxg7 {[%clk 0:02:08.1]}
14. f4 {[%clk 0:02:38.8]} 14... b5 {[%clk 0:01:58.4]} 15. Ne3 {[%clk 0:02:37.2]}
15... Rb8 {[%clk 0:01:51.9]} 16. a3 {[%clk 0:02:37]} 16... a5 {[%clk 0:01:51.4]}
17. g4 {[%clk 0:02:37.2]} 17... b4 {[%clk 0:01:36.8]} 18. axb4 {[%clk
0:02:38.1]} 18... axb4 {[%clk 0:01:36.5]} 19. h3 {[%clk 0:02:33.9]} 19... bxc3
{[%clk 0:01:36.3]} 20. bxc3 {[%clk 0:02:34.8]} 20... Qb6 {[%clk 0:01:34.1]} 21.
Ra2 {[%clk 0:02:27]} 21... Rb7 {[%clk 0:01:14.1]} 22. Kh2 {[%clk 0:02:19]} 22...
Rfb8 {[%clk 0:01:13.4]} 23. Ng3 {[%clk 0:02:13]} 23... Ra7 {[%clk 0:00:56.8]}
24. Rfa1 {[%clk 0:02:06.9]} 24... Rba8 {[%clk 0:00:55.3]} 25. h4 {[%clk
0:01:57.3]} 25... Rxa2 {[%clk 0:00:54.9]} 26. Rxa2 {[%clk 0:01:57.6]} 26... Rxa2
{[%clk 0:00:52.5]} 27. Qxa2 {[%clk 0:01:58.5]} 27... Qa7 {[%clk 0:00:47.6]} 28.
Qb2 {[%clk 0:01:56.1]} 28... Qb8 {[%clk 0:00:45.7]} 29. Qxb8 {[%clk 0:01:31.9]}
29... Nxb8 {[%clk 0:00:45.6]} 30. Nc4 {[%clk 0:01:32.8]} 30... Nc8 {[%clk
0:00:35.9]} 31. h5 {[%clk 0:01:30.3]} 31... fxg4 {[%clk 0:00:35.1]} 32. Ne3
{[%clk 0:01:23.5]} 32... gxh5 {[%clk 0:00:29.8]} 33. Nxh5+ {[%clk 0:01:22.5]}
33... Kg6 {[%clk 0:00:30.1]} 34. Ng3 {[%clk 0:01:14.3]} 34... h5 {[%clk
0:00:30.1]} 35. e5 {[%clk 0:01:08.4]} 35... dxe5 {[%clk 0:00:26]} 36. fxe5
{[%clk 0:01:07.2]} 36... Nc6 {[%clk 0:00:24.9]} 37. Be4+ {[%clk 0:01:03.1]}
37... Kg5 {[%clk 0:00:23]} 38. Nc4 {[%clk 0:00:58]} 38... h4 {[%clk 0:00:17.3]}
39. Ne2 {[%clk 0:00:57.9]} 39... N8e7 {[%clk 0:00:14.1]} 40. d4 {[%clk 0:00:55]}
40... cxd4 {[%clk 0:00:13.5]} 41. cxd4 {[%clk 0:00:55.9]} 41... Nf5 {[%clk
0:00:11.7]} 42. d5 {[%clk 0:00:45.3]} 42... exd5 {[%clk 0:00:12.6]} 43. Bxd5
{[%clk 0:00:45.7]} 43... g3+ {[%clk 0:00:12.4]} 44. Kg2 {[%clk 0:00:43.5]} 44...
Ne3+ {[%clk 0:00:12.6]} 45. Nxe3 {[%clk 0:00:43.1]} 45... Nxe5 {[%clk
0:00:09.9]} 46. Nd4 {[%clk 0:00:34]} 46... Kf4 {[%clk 0:00:07.9]} 47. Ne2+
{[%clk 0:00:12.7]} 47... Kxe3 {[%clk 0:00:07.9]} 48. Nxg3 {[%clk 0:00:13.5]}
48... h3+ {[%clk 0:00:06.9]} 49. Kh1 {[%clk 0:00:11]} 49... Kf2 {[%clk
0:00:06.9]} 50. Ne4+ {[%clk 0:00:10.7]} 50... Ke3 {[%clk 0:00:06.9]} 51. Ng5
{[%clk 0:00:10.3]} 51... Kd4 {[%clk 0:00:05.7]} 52. Be6 {[%clk 0:00:09.2]} 52...
Bc6+ {[%clk 0:00:04.1]} 53. Kh2 {[%clk 0:00:09.7]} 53... Bd5 {[%clk 0:00:03.4]}
54. Bxd5 {[%clk 0:00:09.7]} 54... Kxd5 {[%clk 0:00:03.6]} 55. Kxh3 {[%clk
0:00:10.2]} 1/2-1/2